bitfinex/quotes_BTCUSD_20251029
["timestamp","ask_amount","ask_price","bid_price","bid_amount"]
[1761738052371,0.17649135,113320.0,113310.0,0.60260957]
[1761738052603,0.17649135,113320.0,113310.0,0.60360957]
[1761738052841,0.17647577,113330.0,113320.0,0.17649135]
[1761738053062,0.17647577,113330.0,113320.0,0.98741214]
[1761738053268,0.17647577,113330.0,113320.0,0.96976301]
[1761738054552,0.18529728,113340.0,113320.0,1.05958202]
[1761738054770,0.18529728,113340.0,113330.0,0.42280583]
[1761738055415,0.17648785,113340.0,113330.0,0.45334717]
[1761738056146,0.18531086,113340.0,113330.0,0.62982294]
[1761738056353,0.18531086,113340.0,113330.0,0.45334717]
[1761738057581,0.18531086,113340.0,113330.0,0.42280583]
[1761738058367,0.18531086,113340.0,113330.0,0.5992816]
[1761738058781,0.18531086,113340.0,113330.0,0.42380583]
[1761738058981,0.18531086,113340.0,113330.0,0.42280583]
[1761738059180,0.18531086,113340.0,113330.0,0.5992816]
[1761738059445,0.18531086,113340.0,113330.0,0.59925327]
[1761738059598,0.18531086,113340.0,113330.0,0.60125327]
[1761738060444,0.18627285,113350.0,113330.0,0.68917563]
[1761738060674,0.18627285,113350.0,113340.0,0.2288002]
[1761738060905,0.18627285,113350.0,113340.0,0.05234]
[1761738061282,0.18627285,113350.0,113340.0,0.4227775]
[1761738061919,0.18627285,113350.0,113340.0,0.02781]
[1761738062043,0.18627285,113350.0,113340.0,0.01166]
[1761738062472,0.18627285,113350.0,113340.0,0.02781]
[1761738063362,0.18627285,113350.0,113340.0,0.05334]
[1761738067838,0.18627285,113350.0,113340.0,0.01266]
[1761738068048,0.18627285,113350.0,113340.0,0.001]
[1761738068975,0.52627285,113350.0,113340.0,0.001]
[1761738069722,2.52627285,113350.0,113340.0,0.001]
[1761738069936,2.5345252,113350.0,113340.0,0.001]
[1761738070142,2.8433578,113350.0,113340.0,0.001]
[1761738071059,2.87954008,113350.0,113340.0,0.001]
[1761738071219,2.92983482,113350.0,113340.0,0.001]
[1761738071427,0.17649135,113320.0,113310.0,0.03533682]
[1761738071883,0.17649135,113320.0,113310.0,0.05180682]
[1761738072572,0.17649135,113320.0,113310.0,0.06945751]
[1761738072800,0.17649135,113320.0,113310.0,0.43989501]
[1761738073009,0.17649135,113320.0,113310.0,0.42324432]
[1761738073226,0.17649135,113320.0,113310.0,0.05280682]
[1761738073443,0.17649135,113320.0,113310.0,0.07045751]
[1761738073854,0.17649135,113320.0,113310.0,0.05280682]
[1761738074306,0.17649135,113320.0,113310.0,0.05680682]
[1761738075207,0.21178947,113320.0,113310.0,0.05680682]
[1761738075449,0.17649135,113320.0,113310.0,0.03342682]
[1761738076286,0.17649135,113320.0,113310.0,0.03242682]
[1761738076712,0.17649135,113320.0,113310.0,0.05580682]
[1761738076909,0.17649135,113320.0,113310.0,0.05180682]
[1761738077115,0.17649135,113320.0,113310.0,0.02842682]
[1761738077487,0.21178947,113320.0,113310.0,0.03042682]
[1761738078955,0.21178947,113320.0,113310.0,0.00229682]
[1761738089071,0.64986433,113320.0,113310.0,0.00229682]
[1761738089342,0.66888501,113320.0,113310.0,0.00229682]
[1761738090988,2.70506729,113320.0,113310.0,1e-08]
[1761738091187,2.72883457,113320.0,113310.0,1e-08]
[1761738091454,0.1765225,113300.0,113290.0,0.0004]
[1761738091605,0.19012474,113300.0,113290.0,0.00044833]
[1761738095137,0.1765225,113300.0,113290.0,0.00044833]
[1761738096434,0.1765225,113300.0,113290.0,0.01609833]
[1761738097064,0.1765225,113300.0,113290.0,0.01652184]
[1761738097466,0.1765225,113300.0,113290.0,0.00087184]
[1761738098794,0.52477801,113300.0,113290.0,0.00087184]
[1761738099005,0.54379869,113300.0,113290.0,0.00087184]
[1761738102403,2.6336177,113300.0,113290.0,0.00087184]
[1761738104236,2.6346177,113300.0,113290.0,0.00087184]
[1761738108020,2.54479869,113300.0,113290.0,0.00087184]
[1761738115397,2.56856597,113300.0,113290.0,0.00087184]
[1761738120353,0.16323367,113280.0,113270.0,0.0004]
[1761738120579,2.31212971,113280.0,113270.0,0.00088266]
[1761738120809,2.38625523,113280.0,113270.0,0.00088266]
[1761738121091,2.37799972,113280.0,113270.0,0.00088266]
[1761738121535,2.57799972,113280.0,113270.0,0.00088266]
[1761738121763,2.53029846,113280.0,113270.0,1e-08]
[1761738121955,2.53129846,113280.0,113270.0,1e-08]
[1761738123300,2.56748074,113280.0,113270.0,1e-08]
[1761738123515,2.59129202,113280.0,113270.0,1e-08]
[1761738126227,2.59957576,113280.0,113270.0,0.00042364]
[1761738126358,2.59957576,113280.0,113270.0,1e-08]
[1761738129446,2.56777492,113280.0,113270.0,1e-08]
[1761738130099,2.59957576,113280.0,113270.0,1e-08]
[1761738130986,2.84677576,113280.0,113270.0,1e-08]
[1761738132782,2.8203515,113280.0,113270.0,1e-08]
[1761738139262,3.1603515,113280.0,113270.0,1e-08]
[1761738139461,0.51658484,113260.0,113250.0,0.0004]
[1761738139629,0.63370827,113260.0,113250.0,0.00044828]
[1761738139834,2.85748982,113260.0,113250.0,0.00044828]
[1761738140066,2.85748982,113260.0,113250.0,0.00087202]
[1761738142071,2.85848982,113260.0,113250.0,0.00087202]
[1761738142471,2.86048982,113260.0,113250.0,0.00087202]
[1761738144605,2.86046238,113260.0,113250.0,0.00087202]
[1761738148245,2.89226322,113260.0,113250.0,0.00087202]
[1761738149849,2.88400692,113260.0,113250.0,0.00087202]
[1761738150017,2.89228229,113260.0,113250.0,0.00087202]
[1761738150212,2.26246328,113260.0,113250.0,0.00087202]
[1761738150425,0.20688089,113260.0,113250.0,0.01652202]
[1761738150797,0.20688089,113260.0,113250.0,0.05082202]
[1761738151005,0.54688089,113260.0,113250.0,0.05082202]
[1761738151332,0.36632064,113260.0,113250.0,0.05082202]
[1761738151549,0.54290548,113260.0,113250.0,0.05082202]
[1761738151749,0.54290548,113260.0,113250.0,0.00087202]
[1761738155274,0.53560552,113260.0,113250.0,0.00087202]
[1761738156481,0.53545135,113260.0,113250.0,0.00087202]
[1761738161611,0.5592329,113260.0,113250.0,0.00087202]
[1761738163432,0.56751225,113260.0,113250.0,0.00087202]
[1761738170243,0.76751225,113260.0,113250.0,0.00087202]
[1761738170446,2.79931309,113260.0,113250.0,0.00087202]
[1761738171609,2.8891321,113260.0,113250.0,0.00087202]
[1761738172068,2.88913645,113260.0,113250.0,0.00087202]
[1761738172594,3.12531873,113260.0,113250.0,0.00087202]
[1761738172818,3.10153718,113260.0,113250.0,0.00087202]
[1761738177524,2.6653549,113260.0,113250.0,0.00087202]
[1761738177752,2.68921156,113260.0,113250.0,0.00087202]
[1761738179141,2.59939255,113260.0,113250.0,0.00087202]
[1761738180465,2.79939255,113260.0,113250.0,0.00087202]
[1761738181337,2.8653549,113260.0,113250.0,0.00087202]
[1761738183214,2.8663549,113260.0,113250.0,0.00087202]
[1761738183415,2.8673549,113260.0,113250.0,0.00087202]
[1761738183805,2.69121034,113260.0,113250.0,0.00087202]
[1761738188614,2.69121034,113260.0,113250.0,0.00082402]
[1761738192259,2.60139133,113260.0,113250.0,0.00082402]
[1761738201361,2.60139514,113260.0,113250.0,0.00082402]
[1761738205525,2.37827522,113260.0,113250.0,0.00082402]
[1761738205728,2.18687235,113260.0,113250.0,0.00082402]
[1761738205936,2.22983296,113260.0,113250.0,0.00082402]
[1761738206555,2.22983284,113260.0,113250.0,0.00082402]
[1761738207635,2.56983284,113260.0,113250.0,0.00082402]
[1761738214533,0.51660044,113250.0,113240.0,0.0004]
[1761738214754,0.54398143,113250.0,113240.0,0.00044834]
[1761738215555,0.56784844,113250.0,113240.0,0.00044834]
[1761738217496,0.56784844,113250.0,113240.0,0.00144834]
[1761738219796,0.57801677,113250.0,113240.0,0.00144834]
[1761738220048,0.57801677,113250.0,113240.0,0.00166024]
[1761738222550,0.55414976,113250.0,113240.0,0.05338024]
[1761738222772,0.55414976,113250.0,113240.0,0.09701283]
[1761738222999,0.55414976,113250.0,113240.0,0.05338024]
[1761738224637,0.54586237,113250.0,113240.0,0.05338024]
[1761738224867,0.54586237,113250.0,113240.0,0.07104184]
[1761738228048,0.20586237,113250.0,113240.0,0.16086085]
[1761738228264,0.18676877,113250.0,113240.0,0.16086085]
[1761738230977,0.18676877,113250.0,113240.0,0.33747688]
[1761738231192,0.18676877,113250.0,113240.0,0.31981528]
[1761738232285,0.18676877,113250.0,113240.0,0.14319925]
[1761738232498,0.18676877,113250.0,113240.0,0.16086085]
[1761738234192,0.18676877,113250.0,113240.0,0.18730073]
[1761738234613,0.18676877,113250.0,113240.0,0.16086085]
[1761738237060,0.18676877,113250.0,113240.0,0.14319925]
[1761738242486,0.18676877,113250.0,113240.0,0.02899024]
[1761738243075,0.18676877,113250.0,113240.0,0.05338024]
[1761738244572,0.18676877,113250.0,113240.0,0.07992262]
[1761738246048,0.22501295,113250.0,113240.0,0.07992262]
[1761738246283,0.18676877,113250.0,113240.0,0.05553262]
[1761738248518,0.18676877,113250.0,113240.0,0.07921262]
[1761738251098,0.18676877,113250.0,113240.0,0.45036801]
[1761738252183,0.18676877,113250.0,113240.0,0.07921262]
[1761738252407,0.18676877,113250.0,113240.0,0.45036801]
[1761738252624,0.18676877,113250.0,113240.0,0.51423695]
[1761738253280,0.18676877,113250.0,113240.0,0.51443695]
[1761738253912,0.18676877,113250.0,113240.0,0.14328156]
[1761738257543,0.18676877,113250.0,113240.0,0.07941262]
[1761738266361,0.18676877,113250.0,113240.0,0.03997262]
[1761738266818,0.18676877,113250.0,113240.0,0.05511262]
[1761738270458,0.18676877,113250.0,113240.0,0.05501262]
[1761738273839,0.52676877,113250.0,113240.0,0.02830262]
[1761738274070,0.55413418,113250.0,113240.0,0.02830262]
[1761738274266,0.57799439,113250.0,113240.0,0.02830262]
[1761738274494,0.6678134,113250.0,113240.0,0.00176024]
[1761738274902,0.66783194,113250.0,113240.0,0.00176024]
[1761738275465,2.92618144,113250.0,113240.0,0.00176024]
[1761738277351,2.92618144,113250.0,113240.0,0.00076024]
[1761738277818,2.92818144,113250.0,113240.0,0.00076024]
[1761738278418,2.8963806,113250.0,113240.0,0.00076024]
[1761738279939,2.96436372,113250.0,113240.0,1e-08]
[1761738280149,2.41279831,113240.0,113230.0,1e-08]
[1761738280396,2.55394659,113240.0,113230.0,1e-08]
[1761738280839,2.58049971,113240.0,113230.0,1e-08]
[1761738281272,2.95230055,113240.0,113230.0,1e-08]
[1761738282921,3.15230055,113240.0,113230.0,1e-08]
[1761738283754,2.17663163,113230.0,113220.0,0.03082625]
[1761738283958,2.28554214,113230.0,113220.0,0.03082625]
[1761738284398,2.28554214,113230.0,113220.0,0.03103821]
[1761738284636,2.31209681,113230.0,113220.0,0.03103821]
[1761738285254,2.31309681,113230.0,113220.0,0.03103821]
[1761738285670,2.31409681,113230.0,113220.0,0.03103821]
[1761738286485,2.51409681,113230.0,113220.0,0.03103821]
[1761738288389,2.51309681,113230.0,113220.0,0.03103821]
[1761738297666,2.51209681,113230.0,113220.0,0.03103821]
[1761738298088,2.51309681,113230.0,113220.0,0.03103821]
[1761738298554,2.51209681,113230.0,113220.0,0.03103821]
[1761738298753,2.51109681,113230.0,113220.0,0.03103821]
[1761738299120,2.51209681,113230.0,113220.0,0.03103821]
[1761738299734,2.51109681,113230.0,113220.0,0.03103821]
[1761738300138,2.51109681,113230.0,113220.0,0.02603821]
[1761738300973,0.2212778,113230.0,113220.0,0.07701821]
[1761738301145,0.51563163,113230.0,113220.0,0.07701821]
[1761738301346,0.53472313,113230.0,113220.0,0.07701821]
[1761738302151,0.53472313,113230.0,113220.0,0.05339821]
[1761738303672,0.53472313,113230.0,113220.0,0.07701821]
[1761738303885,0.53472313,113230.0,113220.0,0.4501736]
[1761738303886,0.19472313,113230.0,113220.0,0.4501736]
[1761738304030,0.17563163,113230.0,113220.0,0.13402413]
[1761738304247,0.17563163,113230.0,113220.0,0.07901821]
[1761738307628,0.17563163,113230.0,113220.0,0.34548445]
[1761738307848,0.17563163,113230.0,113220.0,0.71671767]
[1761738308341,0.17563163,113230.0,113220.0,0.34548445]
[1761738308760,0.17563163,113230.0,113220.0,0.71671767]
[1761738308967,0.17563163,113230.0,113220.0,0.80653668]
[1761738309605,0.17663163,113230.0,113220.0,0.80653668]
[1761738310042,0.17663163,113230.0,113220.0,0.71671767]
[1761738310251,0.17663163,113230.0,113220.0,0.74326332]
[1761738313940,0.1767438,113240.0,113220.0,0.74326332]
[1761738314161,0.17663163,113230.0,113220.0,0.70397332]
[1761738314374,0.17663163,113230.0,113220.0,0.67742767]
[1761738314577,0.17663163,113230.0,113220.0,0.69309767]
[1761738314779,0.19639401,113250.0,113220.0,0.69309767]
[1761738314780,0.18343063,113250.0,113230.0,0.0281]
[1761738314986,0.18351596,113250.0,113240.0,0.0281]
[1761738315649,0.18351596,113250.0,113240.0,0.07841565]
[1761738316063,0.17334763,113250.0,113240.0,0.53946788]
[1761738316233,0.17334763,113250.0,113240.0,0.24108757]
[1761738316389,0.18332281,113250.0,113240.0,0.24108757]
[1761738316602,0.17334763,113250.0,113240.0,0.24108757]
[1761738317363,0.17434763,113250.0,113240.0,0.24108757]
[1761738317479,0.17334763,113250.0,113240.0,0.24108757]
[1761738317883,0.17334763,113250.0,113240.0,0.24508757]
[1761738318937,0.1835373,113250.0,113240.0,0.24508757]
[1761738320807,0.17334763,113250.0,113240.0,0.24508757]
[1761738322605,0.17334763,113250.0,113240.0,0.4217036]
[1761738322977,0.17334763,113250.0,113240.0,0.24508757]
[1761738323197,0.17334763,113250.0,113240.0,0.17223466]
[1761738323429,0.00088055,113250.0,113240.0,0.36651229]
[1761738323651,0.00088055,113250.0,113240.0,0.72008391]
[1761738327743,0.17748099,113250.0,113240.0,0.72008391]
[1761738327968,0.00088055,113250.0,113240.0,0.72008391]
[1761738328170,0.00088055,113250.0,113240.0,0.80990292]
[1761738331303,0.00088055,113250.0,113240.0,0.4386697]
[1761738331530,0.00088055,113250.0,113240.0,0.80990292]
[1761738331741,0.17748099,113250.0,113240.0,0.80990292]
[1761738331950,0.17748099,113250.0,113240.0,0.4386697]
[1761738332160,0.17748099,113250.0,113240.0,0.80990292]
[1761738332609,0.00088055,113250.0,113240.0,0.80990292]
[1761738334430,0.00088055,113250.0,113240.0,0.79402292]
[1761738334657,0.00088055,113250.0,113240.0,0.71987391]
[1761738336157,0.17748099,113250.0,113240.0,0.71987391]
[1761738337199,0.00088055,113250.0,113240.0,0.71987391]
[1761738345600,0.00088055,113250.0,113240.0,1.05987391]
[1761738345816,0.00088055,113250.0,113240.0,1.14969292]
[1761738357159,0.00088055,113250.0,113240.0,0.80969292]
[1761738357373,0.00088055,113250.0,113240.0,0.71987391]
[1761738360884,0.00088055,113250.0,113240.0,0.34864069]
[1761738364685,0.17748099,113250.0,113240.0,0.17202466]
[1761738365359,0.17748099,113250.0,113240.0,0.34864069]
[1761738365578,0.00088055,113250.0,113240.0,1.18050154]
[1761738366664,0.00088055,113250.0,113240.0,0.4384597]
[1761738366882,0.00088055,113250.0,113240.0,1.18050154]
[1761738367775,0.00088055,113250.0,113240.0,1.09068253]
[1761738368119,0.17748099,113250.0,113240.0,1.09068253]
[1761738368124,0.17748099,113250.0,113240.0,0.71966161]
[1761738368327,0.00088055,113250.0,113240.0,0.71966161]
[1761738368526,0.17748099,113250.0,113240.0,0.71966161]
[1761738368937,0.00088055,113250.0,113240.0,0.71966161]
[1761738369572,0.17748099,113250.0,113240.0,0.71966161]
[1761738370339,0.00088055,113250.0,113240.0,0.71966161]
[1761738370574,0.00088055,113250.0,113240.0,0.34864069]
[1761738370767,0.00088055,113250.0,113240.0,0.71966161]
[1761738370963,0.00088055,113250.0,113240.0,0.69311596]
[1761738372638,0.17748099,113250.0,113240.0,0.69311596]
[1761738372857,0.17748099,113250.0,113240.0,0.32209504]
[1761738373068,0.17660044,113250.0,113240.0,0.32209504]
[1761738378604,0.15729624,113260.0,113240.0,0.32209504]
[1761738378834,0.15729624,113260.0,113250.0,0.14078901]
[1761738382580,0.20035615,113260.0,113250.0,0.11720901]
[1761738383456,0.20035615,113260.0,113250.0,0.14078901]
[1761738384298,0.19156615,113260.0,113250.0,0.14078901]
[1761738384713,0.191778,113260.0,113250.0,0.14078901]
[1761738385596,0.200568,113260.0,113250.0,0.14078901]
[1761738387340,0.15750809,113260.0,113250.0,0.14078901]
[1761738392939,0.16629809,113260.0,113250.0,0.14078901]
[1761738393364,0.15750809,113260.0,113250.0,0.14078901]
[1761738393615,0.15516829,113260.0,113250.0,0.14078901]
[1761738395203,0.16395829,113260.0,113250.0,0.14078901]
[1761738395873,0.15516829,113260.0,113250.0,0.14078901]
[1761738396542,0.20080173,113260.0,113250.0,0.02739]
[1761738399400,0.15516829,113260.0,113250.0,0.05185]
[1761738403912,0.15516829,113260.0,113250.0,0.44053096]
[1761738404110,0.15516829,113260.0,113250.0,0.42287092]
[1761738404324,0.15516829,113260.0,113250.0,0.51268993]
[1761738404732,0.15516829,113260.0,113250.0,0.68929037]
[1761738404929,0.15516829,113260.0,113250.0,0.77910938]
[1761738409560,0.15516829,113260.0,113250.0,0.69297037]
[1761738409981,0.15516829,113260.0,113250.0,0.32294945]
[1761738410181,0.15516829,113260.0,113250.0,0.69397037]
[1761738411980,0.00021185,113260.0,113250.0,0.69397037]
[1761738414423,0.17679669,113260.0,113250.0,0.69397037]
[1761738418303,0.00021185,113260.0,113250.0,0.69397037]
[1761738427331,0.00021185,113260.0,113250.0,0.69386072]
[1761738430777,0.17679669,113260.0,113250.0,0.32294945]
[1761738432587,0.17679669,113260.0,113250.0,0.14634901]
[1761738433653,0.20051669,113260.0,113250.0,0.12188901]
[1761738434063,0.20051669,113260.0,113250.0,0.14660901]
[1761738435084,0.20051669,113260.0,113250.0,0.12188901]
[1761738436858,0.20051669,113260.0,113250.0,0.14660901]
[1761738437097,0.20051669,113260.0,113250.0,0.11788901]
[1761738437303,0.20051669,113260.0,113250.0,0.11888901]
[1761738437752,0.20051669,113260.0,113250.0,0.02907]
[1761738438385,0.20051669,113260.0,113250.0,0.05379]
[1761738439255,0.17679669,113260.0,113250.0,0.05379]
[1761738443850,0.17679669,113260.0,113250.0,0.23039044]
[1761738444074,0.17679669,113260.0,113250.0,0.69112072]
[1761738444732,0.00021185,113260.0,113250.0,0.69112072]
[1761738447648,0.00021185,113260.0,113250.0,1.15008595]
[1761738447876,0.00021185,113260.0,113250.0,0.69112072]
[1761738453223,0.00021185,113260.0,113250.0,1.09821427]
[1761738453447,0.00021185,113260.0,113250.0,1.48548451]
[1761738453708,0.00021185,113260.0,113250.0,1.51201579]
[1761738453915,0.00021185,113260.0,113250.0,1.46474555]
[1761738454151,0.00021185,113260.0,113250.0,1.56456455]
[1761738454356,0.00021185,113260.0,113250.0,1.61189372]
[1761738455440,0.00021185,113260.0,113250.0,1.61789372]
[1761738455650,0.00021185,113260.0,113250.0,1.61689372]
[1761738455854,0.00021185,113260.0,113250.0,1.62689371]
[1761738456065,0.00021185,113260.0,113250.0,1.62889371]
[1761738456327,0.00021185,113260.0,113250.0,1.62289371]
[1761738457837,0.00021185,113260.0,113250.0,1.62989371]
[1761738459145,0.00021185,113260.0,113250.0,1.77829371]
[1761738461251,0.00021185,113260.0,113250.0,1.76829372]
[1761738461477,0.00021185,113260.0,113250.0,1.77829371]
[1761738462123,0.00021185,113260.0,113250.0,1.66847472]
[1761738462335,0.00021185,113260.0,113250.0,1.62114555]
[1761738463565,0.00021185,113260.0,113250.0,1.25023428]
[1761738463936,0.00021185,113260.0,113250.0,1.62114555]
[1761738464351,0.00021185,113260.0,113250.0,1.60526555]
[1761738464721,0.00021185,113260.0,113250.0,1.61691555]
[1761738467167,0.00021185,113260.0,113250.0,1.69935332]
[1761738469066,0.1779945,113300.0,113280.0,0.17655367]
[1761738469265,0.17653822,113290.0,113280.0,0.31239268]
[1761738469694,0.17717358,113290.0,113280.0,0.31239268]
[1761738470069,0.18600048,113290.0,113280.0,0.31239268]
[1761738470277,0.18600048,113290.0,113280.0,0.13583901]
[1761738470710,0.18600048,113290.0,113280.0,0.31239268]
[1761738471900,0.18600048,113290.0,113280.0,0.13583901]
[1761738472294,0.18600048,113290.0,113280.0,0.13783901]
[1761738472749,0.18600048,113290.0,113280.0,0.04802]
[1761738472960,0.24418681,113290.0,113280.0,0.04802]
[1761738473290,0.22858681,113290.0,113280.0,0.04802]
[1761738473494,0.18981048,113290.0,113280.0,0.04802]
[1761738474094,0.18981048,113290.0,113280.0,0.04602]
[1761738475549,0.17655367,113280.0,113270.0,0.03035]
[1761738475770,0.20094367,113280.0,113270.0,0.11133901]
[1761738475966,0.22466367,113280.0,113270.0,0.11133901]
[1761738476096,0.20136728,113280.0,113270.0,0.11133901]
[1761738476459,0.24042152,113280.0,113270.0,0.11133901]
[1761738476666,0.24042152,113280.0,113270.0,0.13583901]
[1761738476869,0.24042152,113280.0,113270.0,0.13783901]
[1761738477079,0.20136728,113280.0,113270.0,0.13783901]
[1761738477285,0.20136728,113280.0,113270.0,0.13583901]
[1761738477500,0.20136728,113280.0,113270.0,0.13683901]
[1761738481411,0.20136728,113280.0,113270.0,0.11233901]
[1761738481659,0.20136728,113280.0,113270.0,0.31340826]
[1761738481868,0.18576728,113280.0,113270.0,0.31340826]
[1761738482284,0.17697728,113280.0,113270.0,0.13683901]
[1761738482492,0.25994452,113280.0,113270.0,0.09081901]
[1761738482704,0.25994452,113280.0,113270.0,0.001]
[1761738483413,0.22095728,113280.0,113270.0,0.001]
[1761738484072,0.22095728,113280.0,113260.0,0.01165]
[1761738484073,0.17656925,113270.0,113260.0,0.01165]
[1761738484278,0.17656925,113270.0,113260.0,0.11713901]
[1761738484279,0.19216925,113270.0,113260.0,0.11713901]
[1761738484491,0.19238107,113270.0,113260.0,0.11713901]
[1761738484909,0.17678107,113270.0,113260.0,0.14163901]
[1761738485123,0.17678107,113270.0,113260.0,0.31822385]
[1761738487078,0.17678107,113270.0,113260.0,0.31922385]
[1761738487947,0.17678107,113270.0,113260.0,0.14263901]
[1761738488579,0.17678107,113270.0,113260.0,0.31922385]
[1761738489625,0.17678107,113270.0,113260.0,0.69016412]
[1761738490243,0.17678107,113270.0,113260.0,0.31922385]
[1761738493471,0.17678107,113270.0,113260.0,0.69016412]
[1761738495893,0.17678107,113270.0,113260.0,0.31922385]
[1761738496106,0.17678107,113270.0,113260.0,0.69016412]
[1761738496929,0.17678107,113270.0,113260.0,0.31922385]
[1761738497142,0.17678107,113270.0,113260.0,0.69016412]
[1761738497356,0.17678107,113270.0,113260.0,0.14263901]
[1761738497571,0.17678107,113270.0,113260.0,0.69016412]
[1761738498495,0.17678107,113270.0,113260.0,0.31922385]
[1761738504247,0.17678107,113270.0,113260.0,0.14263901]
[1761738504454,0.17678107,113270.0,113260.0,0.31922385]
[1761738505371,0.17678107,113270.0,113260.0,0.14263901]
[1761738505633,0.17678107,113270.0,113260.0,0.31922385]
[1761738505813,0.17678107,113270.0,113260.0,0.14263901]
[1761738506065,0.22861107,113270.0,113260.0,0.09081901]
[1761738506298,0.20490107,113270.0,113260.0,0.14072901]
[1761738507448,0.20490107,113270.0,113260.0,0.11810901]
[1761738508512,0.18871107,113270.0,113260.0,0.31731385]
[1761738509142,0.18871107,113270.0,113260.0,0.14072901]
[1761738512555,0.20490107,113270.0,113260.0,0.14072901]
[1761738513110,0.20490107,113270.0,113260.0,0.31731385]
[1761738513941,0.20490107,113270.0,113260.0,0.14072901]
[1761738514142,0.20490107,113270.0,113260.0,0.31731385]
[1761738514362,0.20490107,113270.0,113260.0,0.14072901]
[1761738515793,0.20490107,113270.0,113260.0,0.31731385]
[1761738516403,0.20490107,113270.0,113260.0,0.14072901]
[1761738519453,0.18871107,113270.0,113260.0,0.14072901]
[1761738520298,0.18871107,113270.0,113260.0,0.31731385]
[1761738522302,0.17678107,113270.0,113260.0,0.31731385]
[1761738523351,0.19309107,113270.0,113260.0,0.14072901]
[1761738524190,0.22437107,113270.0,113260.0,0.11810901]
[1761738524607,0.20064107,113270.0,113260.0,0.11810901]
[1761738525458,0.20064107,113270.0,113260.0,0.14176901]
[1761738526099,0.18433107,113270.0,113260.0,0.14176901]
[1761738526277,0.20064107,113270.0,113260.0,0.14176901]
[1761738526919,0.20064107,113270.0,113260.0,0.11810901]
[1761738527567,0.18423107,113270.0,113260.0,0.14176901]
[1761738527772,0.20054107,113270.0,113260.0,0.14176901]
[1761738528185,0.20054107,113270.0,113260.0,0.12588901]
[1761738531893,0.20054107,113270.0,113260.0,0.10222901]
[1761738532302,0.22427107,113270.0,113260.0,0.001]
[1761738533964,0.17658484,113260.0,113250.0,0.03589326]
[1761738534391,0.17658484,113260.0,113250.0,0.05210326]
[1761738534810,0.21513943,113260.0,113250.0,0.05210326]
[1761738536480,0.21513943,113260.0,113250.0,0.2287037]
[1761738536695,0.17658484,113260.0,113250.0,0.2297037]
[1761738537138,0.17658484,113260.0,113250.0,0.60064397]
[1761738539064,0.17658484,113260.0,113250.0,0.2297037]
[1761738542563,0.17658484,113260.0,113250.0,0.60064397]
[1761738543897,0.17658484,113260.0,113250.0,0.2297037]
[1761738551089,0.17658484,113260.0,113250.0,0.25624381]
[1761738553063,0.17668107,113270.0,113250.0,0.71704473]
[1761738553268,0.17676639,113270.0,113260.0,0.22675484]
[1761738553883,0.17676639,113270.0,113260.0,0.2532929]
[1761738554485,0.17776639,113270.0,113260.0,0.2532929]
[1761738554694,0.17676639,113270.0,113260.0,0.2532929]
[1761738555126,0.17776639,113270.0,113260.0,0.2532929]
[1761738556279,0.19666681,113280.0,113260.0,0.33980824]
[1761738556476,0.17658348,113270.0,113260.0,0.33980824]
[1761738556826,0.17658348,113270.0,113260.0,0.31327018]
[1761738557177,0.17658348,113270.0,113260.0,0.33980824]
[1761738557382,0.17658348,113270.0,113260.0,0.2532929]
[1761738558847,0.13570981,113270.0,113260.0,0.2532929]
[1761738584206,0.15170981,113270.0,113260.0,0.07670806]
[1761738585156,0.15170981,113270.0,113260.0,0.2532929]
[1761738585739,0.15170981,113270.0,113260.0,0.07670806]
[1761738586150,0.15170981,113270.0,113260.0,0.2532929]
[1761738586490,0.15170981,113270.0,113260.0,0.07670806]
[1761738590404,0.15170981,113270.0,113260.0,0.06082806]
[1761738590591,0.15170981,113270.0,113260.0,0.07691806]
[1761738590991,0.15170981,113270.0,113260.0,0.2303029]
[1761738593296,0.16326981,113270.0,113260.0,0.2303029]
[1761738595362,0.13570981,113270.0,113260.0,0.2533029]
[1761738599249,0.19883338,113270.0,113260.0,0.05371806]
[1761738599573,0.22209338,113270.0,113260.0,0.02653806]
[1761738599765,0.19883338,113270.0,113260.0,0.04262806]
[1761738599970,0.14726981,113270.0,113260.0,0.2508229]
[1761738600375,0.13570981,113270.0,113260.0,0.2508229]
[1761738602582,0.17656925,113270.0,113260.0,0.2508229]
[1761738605074,0.192016,113280.0,113260.0,0.71162382]
[1761738605314,0.192016,113280.0,113270.0,0.42164191]
[1761738605315,0.172922,113280.0,113270.0,0.42164191]
[1761738605526,0.172922,113280.0,113270.0,0.22722925]
[1761738605732,0.1731338,113280.0,113270.0,0.22722925]
[1761738606351,0.1731338,113280.0,113270.0,0.25376525]
[1761738607390,0.1751338,113280.0,113270.0,0.25376525]
[1761738608258,0.1731338,113280.0,113270.0,0.25376525]
[1761738609953,0.1731338,113280.0,113270.0,0.25476525]
[1761738611358,0.1731338,113280.0,113270.0,0.7154201]
[1761738611538,0.0002118,113280.0,113270.0,0.7154201]
[1761738619699,0.0002118,113280.0,113270.0,0.34458426]
[1761738619909,0.0002118,113280.0,113270.0,0.7154201]
[1761738630390,0.0002118,113280.0,113270.0,0.34458426]
[1761738630645,0.0002118,113280.0,113270.0,0.7154201]
[1761738630904,0.0002118,113280.0,113270.0,0.34458426]
[1761738631158,0.0002118,113280.0,113270.0,0.7154201]
[1761738634182,0.18826946,113290.0,113280.0,0.17864187]
[1761738634406,0.20394777,113290.0,113280.0,0.20547187]
[1761738634879,0.20415954,113290.0,113280.0,0.20547187]
[1761738635099,0.22690954,113290.0,113280.0,0.20547187]
[1761738635314,0.22690954,113290.0,113280.0,0.23200456]
[1761738636176,0.20415954,113290.0,113280.0,0.23200456]
[1761738636604,0.22690954,113290.0,113280.0,0.23200456]
[1761738636966,0.20415954,113290.0,113280.0,0.23200456]
[1761738643344,0.20415954,113290.0,113280.0,0.05545089]
[1761738643549,0.22833954,113290.0,113280.0,0.05545089]
[1761738643733,0.22833954,113290.0,113280.0,0.0020882]
[1761738647954,0.22833954,113290.0,113280.0,0.02862225]
[1761738656368,0.03959044,113290.0,113280.0,0.02862225]
[1761738656586,0.2273699,113290.0,113280.0,0.02862225]
[1761738657441,0.2273699,113290.0,113280.0,0.04366225]
[1761738658528,0.01124,113290.0,113280.0,0.03961225]
[1761738658747,0.18777946,113290.0,113280.0,0.02687]
[1761738660111,0.18777946,113290.0,113280.0,0.20342367]
[1761738660265,0.18777946,113290.0,113280.0,0.22720367]
[1761738665099,0.18777946,113290.0,113280.0,0.05065]
[1761738665391,0.17653946,113290.0,113280.0,0.22720367]
[1761738665608,0.17653808,113290.0,113280.0,0.59803951]
[1761738666165,0.17653808,113290.0,113280.0,0.25373772]
[1761738666733,0.17653808,113290.0,113280.0,0.07718405]
[1761738667365,0.18482339,113290.0,113280.0,0.07718405]
[1761738667577,0.18482339,113290.0,113280.0,0.25373772]
[1761738668825,0.18482339,113290.0,113280.0,0.07718405]
[1761738669233,0.18482339,113290.0,113280.0,0.25373772]
[1761738670853,0.18482339,113290.0,113280.0,0.22720367]
[1761738672316,0.18482339,113290.0,113280.0,0.25373772]
[1761738672880,0.18971339,113290.0,113280.0,0.05340405]